fUSD/lending_fUSD_20240630
["ID","MTS","AMOUNT","RATE_DAILY","PERIOD"]
[330719917,1719735069112,-500.0,0.00014876,3]
[330719918,1719735069122,-346.28,0.00014876,3]
[330719919,1719735069132,-500.0,0.00014876,3]
[330719920,1719735069142,-38388.24,0.00014876,3]
[330719921,1719735069151,-500.0,0.00014876,3]
[330719922,1719735069160,-253.46,0.00014876,3]
[330719923,1719735069170,-19267.62,0.00014876,3]
[330719924,1719735069180,-500.0,0.00014876,3]
[330719925,1719735069191,-23056.87,0.00014884,3]
[330719926,1719735069201,-500.0,0.00014884,3]
[330719927,1719735069211,-500.0,0.00014884,3]
[330719928,1719735069220,-39002.17,0.00014893,3]
[330719929,1719735069230,-13418.74,0.00014893,3]
[330719930,1719735069239,-5295.8,0.00014893,3]
[330719931,1719735069248,-560.00563888,0.00014893,3]
[330719932,1719735069258,-4801.03,0.00014893,3]
[330719933,1719735069268,-500.0,0.00014893,3]
[330719934,1719735069278,-500.0,0.00014893,3]
[330719935,1719735069287,-332.36,0.00014893,3]
[330719936,1719735069296,-8386.89,0.00014893,3]
[330719937,1719735069306,-400.0,0.000149,5]
[330719938,1719735069315,-4353.45,0.00014983,3]
[330719939,1719735069324,-5077.01,0.00014983,3]
[330719940,1719735069334,-30379.71,0.00014984,3]
[330719941,1719735069344,-539.41,0.00014984,3]
[330719942,1719735069353,-500.0,0.00014984,3]
[330719943,1719735069363,-500.0,0.00014984,3]
[330719944,1719735069372,-583.33,0.00014984,3]
[330719945,1719735069381,-5371.12,0.00014984,3]
[330719946,1719735069391,-9052.16,0.00014984,3]
[330719947,1719735069400,-542.22,0.00014984,3]
[330719948,1719735069410,-24110.17,0.00014984,3]
[330719949,1719735069419,-500.0,0.00014984,3]
[330719950,1719735069428,-500.0,0.00014984,3]
[330719951,1719735069437,-151.0,0.00014984,2]
[330719952,1719735069449,-19885.13,0.00014984,3]
[330719953,1719735069458,-16681.86,0.00014984,3]
[330719954,1719735069468,-14694.08,0.00014986,3]
[330719955,1719735069478,-500.0,0.00014986,3]
[330719956,1719735069488,-500.0,0.00014986,3]
[330719957,1719735069498,-236.67,0.00014986,3]
[330719958,1719735069507,-332.52,0.00014986,3]
[330719959,1719735069517,-500.0,0.00014986,3]
[330719960,1719735069527,-6858.26,0.00014986,3]
[330719961,1719735069536,-500.0,0.00014986,3]
[330719962,1719735069546,-500.0,0.00014986,3]
[330719963,1719735069555,-38388.24,0.00014986,3]
[330719964,1719735069565,-500.0,0.00014986,3]
[330719965,1719735069574,-19267.62,0.00014986,3]
[330719966,1719735069584,-500.0,0.00014986,3]
[330719967,1719735069594,-23056.87,0.00014993,3]
[330719968,1719735069603,-500.0,0.00014993,3]
[330719969,1719735069613,-500.0,0.00014993,3]
[330719970,1719735069623,-5000.0,0.00015,2]
[330719971,1719735069632,-3967.8675886,0.00015,2]
[330719972,1719735069641,-2493.38298312,0.00015,2]
[330719973,1719735069651,-31510.76715163,0.00015,2]
[330719974,1719735069661,-125915.19202171,0.00015,2]
[330719975,1719735069670,-622.7781919,0.00015,2]
[330719976,1719735069680,-297.20936,0.00015,2]
[330719977,1719735069690,-39002.17,0.00015003,3]
[330719978,1719735069700,-13418.74,0.00015003,3]
[330719979,1719735069709,-5295.8,0.00015003,3]
[330719980,1719735069719,-4801.03,0.00015003,3]
[330719981,1719735069729,-500.0,0.00015003,3]
[330719982,1719735069738,-500.0,0.00015003,3]
[330719983,1719735069748,-8386.89,0.00015003,3]
[330719984,1719735069757,-21528.88741304,0.00015055,2]
[330719985,1719735069768,-215.15,0.00015068,2]
[330719986,1719735069778,-1396.48016295,0.00015092,2]
[330719987,1719735069787,-5077.01,0.00015092,3]
[330719988,1719735069798,-30379.71,0.00015093,3]
[330719989,1719735069808,-539.41,0.00015093,3]
[330719990,1719735069817,-500.0,0.00015093,3]
[330719991,1719735069826,-500.0,0.00015093,3]
[330719992,1719735069836,-583.33,0.00015093,3]
[330719993,1719735069846,-5371.12,0.00015093,3]
[330719994,1719735069857,-9052.16,0.00015093,3]
[330719995,1719735069868,-24110.17,0.00015093,3]
[330719996,1719735069877,-500.0,0.00015093,3]
[330719997,1719735069887,-319.35,0.00015093,3]
[330719998,1719735069898,-19885.13,0.00015093,3]
[330719999,1719735069908,-16681.86,0.00015093,3]
[330720000,1719735069919,-319.10398717,0.00015094,2]
[330720001,1719735069928,-14694.08,0.00015095,3]
[330720002,1719735069940,-500.0,0.00015095,3]
[330720003,1719735069950,-200.52,0.00015095,3]
[330720004,1719735069959,-500.0,0.00015095,3]
[330720005,1719735069969,-6858.26,0.00015095,3]
[330720006,1719735069979,-500.0,0.00015095,3]
[330720007,1719735069990,-500.0,0.00015095,3]
[330720008,1719735070000,-500.0,0.00015095,3]
[330720009,1719735070010,-19267.62,0.00015095,3]
[330720010,1719735070020,-500.0,0.00015095,3]
[330720011,1719735070029,-23056.87,0.00015103,3]
[330720012,1719735070039,-500.0,0.00015103,3]
[330720013,1719735070050,-403.08,0.00015103,3]
[330720014,1719735070060,-39002.17,0.00015112,3]
[330720015,1719735070070,-13418.74,0.00015112,3]
[330720016,1719735070080,-5295.8,0.00015112,3]
[330720017,1719735070090,-4801.03,0.00015112,3]
[330720018,1719735070100,-500.0,0.00015112,3]
[330720019,1719735070109,-500.0,0.00015112,3]
[330720020,1719735070119,-8386.89,0.00015112,3]
[330720021,1719735070129,-5077.01,0.00015202,3]
[330720022,1719735070138,-30379.71,0.00015203,3]
[330720023,1719735070148,-539.41,0.00015203,3]
[330720024,1719735070158,-500.0,0.00015203,3]
[330720025,1719735070168,-500.0,0.00015203,3]
[330720026,1719735070178,-583.33,0.00015203,3]
[330720027,1719735070191,-5371.12,0.00015203,3]
[330720028,1719735070201,-9052.16,0.00015203,3]
[330720029,1719735070211,-24110.17,0.00015203,3]
[330720030,1719735070221,-318.54,0.00015203,3]
[330720031,1719735070230,-19885.13,0.00015203,3]
[330720032,1719735070239,-16681.86,0.00015203,3]
[330720033,1719735070248,-14694.08,0.00015205,3]
[330720034,1719735070258,-500.0,0.00015205,3]
[330720035,1719735070268,-500.0,0.00015205,3]
[330720036,1719735070278,-6858.26,0.00015205,3]
[330720037,1719735070288,-500.0,0.00015205,3]
[330720038,1719735070298,-160.61,0.00015205,3]
[330720039,1719735070308,-500.0,0.00015205,3]
[330720040,1719735070318,-19267.62,0.00015205,3]
[330720041,1719735070328,-229.75,0.00015205,3]
[330720042,1719735070395,-23056.87,0.00015212,3]
[330720043,1719735070405,-500.0,0.00015212,3]
[330720044,1719735070415,-39002.17,0.00015222,3]
[330720045,1719735070425,-13418.74,0.00015222,3]
[330720046,1719735070434,-5295.8,0.00015222,3]
[330720047,1719735070443,-4801.03,0.00015222,3]
[330720048,1719735070453,-500.0,0.00015222,3]
[330720049,1719735070462,-500.0,0.00015222,3]
[330720050,1719735070472,-8386.89,0.00015222,3]
[330720051,1719735070482,-1000.0,0.00015259,2]
[330720052,1719735070491,-800.0,0.00015259,2]
[330720053,1719735070501,-593.0,0.00015306,2]
[330720054,1719735070511,-30379.71,0.00015312,3]
[330720055,1719735070520,-539.41,0.00015312,3]
[330720056,1719735070530,-414.47,0.00015312,3]
[330720057,1719735070539,-500.0,0.00015312,3]
[330720058,1719735070548,-583.33,0.00015312,3]
[330720059,1719735070558,-5371.12,0.00015312,3]
[330720060,1719735070567,-9052.16,0.00015312,3]
[330720061,1719735070576,-24110.17,0.00015312,3]
[330720062,1719735070589,-19885.13,0.00015312,3]
[330720063,1719735070599,-5077.01,0.00015312,3]
[330720064,1719735070609,-16681.86,0.00015313,3]
[330720065,1719735070618,-14694.08,0.00015314,3]
[330720066,1719735070627,-357.69,0.00015314,3]
[330720067,1719735070637,-500.0,0.00015314,3]
[330720068,1719735070647,-6858.26,0.00015314,3]
[330720069,1719735070656,-500.0,0.00015314,3]
[330720070,1719735070665,-500.0,0.00015314,3]
[330720071,1719735070675,-19267.62,0.00015314,3]
[330720072,1719735070684,-23056.87,0.00015322,3]
[330720073,1719735070694,-500.0,0.00015322,3]
[330720074,1719735070703,-1396.48016295,0.00015324,2]
[330720075,1719735070713,-39002.17,0.00015332,3]
[330720076,1719735070723,-13418.74,0.00015332,3]
[330720077,1719735070732,-5295.8,0.00015332,3]
[330720078,1719735070742,-4801.03,0.00015332,3]
[330720079,1719735070751,-500.0,0.00015332,3]
[330720080,1719735070761,-500.0,0.00015332,3]
[330720081,1719735070771,-8386.89,0.00015332,3]
[330720082,1719735070781,-5040.6761955,0.00015393,2]
[330720083,1719735070791,-77704.25637204,0.00015399,2]
[330720084,1719735070801,-5077.01,0.00015421,3]
[330720085,1719735070811,-30379.71,0.00015422,3]
[330720086,1719735070820,-539.41,0.00015422,3]
[330720087,1719735070830,-438.97,0.00015422,3]
[330720088,1719735070839,-583.33,0.00015422,3]
[330720089,1719735070850,-5371.12,0.00015422,3]
[330720090,1719735070861,-9052.16,0.00015422,3]
[330720091,1719735070876,-24110.17,0.00015422,3]
[330720092,1719735070886,-19885.13,0.00015422,3]
[330720093,1719735070896,-16681.86,0.00015422,3]
[330720094,1719735070905,-14694.08,0.00015424,3]
[330720095,1719735070915,-500.0,0.00015424,3]
[330720096,1719735070924,-6858.26,0.00015424,3]
[330720097,1719735070934,-500.0,0.00015424,3]
[330720098,1719735070943,-207.46,0.00015424,3]
[330720099,1719735070953,-19267.62,0.00015424,3]
[330720100,1719735070962,-23056.87,0.00015432,3]
[330720101,1719735070971,-500.0,0.00015432,3]
[330720102,1719735070981,-39002.17,0.00015441,3]
[330720103,1719735070991,-13418.74,0.00015441,3]
[330720104,1719735071000,-5295.8,0.00015441,3]
[330720105,1719735071009,-4801.03,0.00015441,3]
[330720106,1719735071018,-500.0,0.00015441,3]
[330720107,1719735071027,-500.0,0.00015441,3]
[330720108,1719735071036,-8386.89,0.00015441,3]
[330720109,1719735071046,-2722.04965169,0.00015456,2]
[330720110,1719735071056,-5077.01,0.00015531,3]
[330720111,1719735071068,-30379.71,0.00015532,3]
[330720112,1719735071078,-539.41,0.00015532,3]
[330720113,1719735071087,-583.33,0.00015532,3]
[330720114,1719735071096,-5371.12,0.00015532,3]
[330720115,1719735071105,-9052.16,0.00015532,3]
[330720116,1719735071114,-24110.17,0.00015532,3]
[330720117,1719735071124,-19885.13,0.00015532,3]
[330720118,1719735071133,-16681.86,0.00015532,3]
[330720119,1719735071143,-14694.08,0.00015533,3]
[330720120,1719735071152,-500.0,0.00015533,3]
[330720121,1719735071162,-6858.26,0.00015533,3]
[330720122,1719735071171,-500.0,0.00015533,3]
[330720123,1719735071181,-19267.62,0.00015533,3]
[330720124,1719735071190,-500.0,0.00015533,2]
[330720125,1719735071203,-394.92,0.00015534,2]
[330720126,1719735071214,-23056.87,0.00015541,3]
[330720127,1719735071223,-500.0,0.00015541,3]
[330720128,1719735071233,-174.95455155,0.00015543,2]
[330720129,1719735071243,-39002.17,0.00015551,3]
[330720130,1719735071251,-13418.74,0.00015551,3]
[330720131,1719735071260,-5295.8,0.00015551,3]
[330720132,1719735071269,-4801.03,0.00015551,3]
[330720133,1719735071278,-479.54,0.00015551,3]
[330720134,1719735071286,-500.0,0.00015551,3]
[330720135,1719735071295,-8386.89,0.00015551,3]
[330720136,1719735071304,-297.20935,0.0001563,2]
[330720137,1719735071313,-5077.01,0.0001564,3]
[330720138,1719735071321,-30379.71,0.00015641,3]
[330720139,1719735071330,-539.41,0.00015641,3]
[330720140,1719735071339,-583.33,0.00015641,3]
[330720141,1719735071349,-5371.12,0.00015641,3]
[330720142,1719735071358,-9052.16,0.00015641,3]
[330720143,1719735071367,-24110.17,0.00015641,3]
[330720144,1719735071376,-19885.13,0.00015641,3]
[330720145,1719735071385,-16681.86,0.00015641,3]
[330720146,1719735071394,-14694.08,0.00015643,3]
[330720147,1719735071403,-500.0,0.00015643,3]
[330720148,1719735071412,-6858.26,0.00015643,3]
[330720149,1719735071421,-500.0,0.00015643,3]
[330720150,1719735071430,-19267.62,0.00015643,3]
[330720151,1719735071440,-23056.87,0.00015651,3]
[330720152,1719735071451,-500.0,0.00015651,3]
[330720153,1719735071461,-39002.17,0.0001566,3]
[330720154,1719735071470,-13418.74,0.0001566,3]
[330720155,1719735071479,-5295.8,0.0001566,3]
[330720156,1719735071488,-4801.03,0.0001566,3]
[330720157,1719735071497,-500.0,0.0001566,3]
[330720158,1719735071506,-8386.89,0.0001566,3]
[330720159,1719735071515,-21528.88741304,0.00015733,2]
[330720160,1719735071524,-5077.01,0.0001575,3]
[330720161,1719735071533,-30379.71,0.00015751,3]
[330720162,1719735071543,-539.41,0.00015751,3]
[330720163,1719735071552,-583.33,0.00015751,3]
[330720164,1719735071562,-5371.12,0.00015751,3]
[330720165,1719735071572,-9052.16,0.00015751,3]
[330720166,1719735071583,-24110.17,0.00015751,3]
[330720167,1719735071593,-19885.13,0.00015751,3]
[330720168,1719735071602,-16681.86,0.00015751,3]
[330720169,1719735071612,-14694.08,0.00015753,3]
[330720170,1719735071621,-500.0,0.00015753,3]
[330720171,1719735071630,-6858.26,0.00015753,3]
[330720172,1719735071639,-500.0,0.00015753,3]
[330720173,1719735071648,-19267.62,0.00015753,3]
[330720174,1719735071657,-23056.87,0.0001576,3]
[330720175,1719735071666,-500.0,0.0001576,3]
[330720176,1719735071676,-39002.17,0.0001577,3]
[330720177,1719735071685,-13418.74,0.0001577,3]
[330720178,1719735071695,-5295.8,0.0001577,3]
[330720179,1719735071704,-4801.03,0.0001577,3]
[330720180,1719735071713,-288.0,0.0001577,3]
[330720181,1719735071722,-8386.89,0.0001577,3]
[330720182,1719735071732,-38209.0,0.00015835,2]
[330720183,1719735071741,-4641.864,0.00015835,2]
[330720184,1719735071750,-1198.0,0.00015835,2]
[330720185,1719735071759,-1662.0,0.00015835,2]
[330720186,1719735071768,-30379.71,0.0001586,3]
[330720187,1719735071777,-539.41,0.0001586,3]
[330720188,1719735071786,-583.33,0.0001586,3]
[330720189,1719735071795,-5371.12,0.0001586,3]
[330720190,1719735071805,-9052.16,0.0001586,3]
[330720191,1719735071814,-24110.17,0.0001586,3]
[330720192,1719735071823,-19885.13,0.0001586,3]
[330720193,1719735071831,-5077.01,0.0001586,3]
[330720194,1719735071841,-16681.86,0.00015861,3]
[330720195,1719735071850,-14694.08,0.00015862,3]
[330720196,1719735071860,-500.0,0.00015862,3]
[330720197,1719735071874,-6858.26,0.00015862,3]
[330720198,1719735071883,-500.0,0.00015862,3]
[330720199,1719735071892,-19267.62,0.00015862,3]
[330720200,1719735071901,-23056.87,0.0001587,3]
[330720201,1719735071910,-500.0,0.0001587,3]
[330720202,1719735071919,-39002.17,0.00015879,3]
[330720203,1719735071929,-13418.74,0.00015879,3]
[330720204,1719735071938,-5295.8,0.00015879,3]
[330720205,1719735071947,-4801.03,0.00015879,3]
[330720206,1719735071956,-8386.89,0.00015879,3]
[330720207,1719735071965,-179.57,0.00015892,2]
[330720208,1719735071975,-800.0,0.00015924,2]
[330720209,1719735071984,-5077.01,0.00015969,3]
[330720210,1719735071993,-30379.71,0.0001597,3]
[330720211,1719735072002,-539.41,0.0001597,3]
[330720212,1719735072012,-583.33,0.0001597,3]
[330720213,1719735072021,-5371.12,0.0001597,3]
[330720214,1719735072030,-9052.16,0.0001597,3]
[330720215,1719735072039,-24110.17,0.0001597,3]
[330720216,1719735072048,-19885.13,0.0001597,3]
[330720217,1719735072057,-16681.86,0.0001597,3]
[330720218,1719735072066,-14694.08,0.00015972,3]
[330720219,1719735072075,-500.0,0.00015972,3]
[330720220,1719735072085,-6858.26,0.00015972,3]
[330720221,1719735072094,-311.99,0.00015972,3]
[330720222,1719735072104,-19267.62,0.00015972,3]
[330720223,1719735072113,-23056.87,0.0001598,3]
[330720224,1719735072122,-500.0,0.0001598,3]
[330720225,1719735072131,-39002.17,0.00015989,3]
[330720226,1719735072140,-13418.74,0.00015989,3]
[330720227,1719735072149,-5295.8,0.00015989,3]
[330720228,1719735072158,-4801.03,0.00015989,3]
[330720229,1719735072169,-8386.89,0.00015989,3]
[330720230,1719735072179,-1464.0,0.00016,2]
[330720231,1719735072189,-863.0,0.00016,2]
[330720232,1719735072199,-5077.01,0.00016079,3]
[330720233,1719735072208,-30379.71,0.0001608,3]
[330720234,1719735072217,-539.41,0.0001608,3]
[330720235,1719735072226,-583.33,0.0001608,3]
[330720236,1719735072235,-5371.12,0.0001608,3]
[330720237,1719735072244,-9052.16,0.0001608,3]
[330720238,1719735072253,-24110.17,0.0001608,3]
[330720239,1719735072262,-19885.13,0.0001608,3]
[330720240,1719735072271,-16681.86,0.0001608,3]
[330720241,1719735072280,-1000.0,0.00016081,2]
[330720242,1719735072289,-800.0,0.00016081,2]
[330720243,1719735072298,-14694.08,0.00016081,3]
[330720244,1719735072307,-500.0,0.00016081,3]
[330720245,1719735072317,-6858.26,0.00016081,3]
[330720246,1719735072327,-19267.62,0.00016081,3]
[330720247,1719735072338,-23056.87,0.00016089,3]
[330720248,1719735072347,-507.57,0.00016089,3]
[330720249,1719735072357,-39002.17,0.00016099,3]
[330720250,1719735072367,-13418.74,0.00016099,3]
[330720251,1719735072377,-5295.8,0.00016099,3]
[330720252,1719735072387,-4801.03,0.00016099,3]
[330720253,1719735072397,-8386.89,0.00016099,3]
[330720254,1719735072406,-4294.0,0.000161,2]
[330720255,1719735072416,-5077.01,0.00016188,3]
[330720256,1719735072425,-30379.71,0.00016189,3]
[330720257,1719735072434,-539.41,0.00016189,3]
[330720258,1719735072443,-583.33,0.00016189,3]
[330720259,1719735072453,-5371.12,0.00016189,3]
[330720260,1719735072463,-9052.16,0.00016189,3]
[330720261,1719735072472,-24110.17,0.00016189,3]
[330720262,1719735072481,-19885.13,0.00016189,3]
[330720263,1719735072491,-16681.86,0.00016189,3]
[330720264,1719735072500,-14694.08,0.00016191,3]
[330720265,1719735072509,-500.0,0.00016191,3]
[330720266,1719735072518,-6858.26,0.00016191,3]
[330720267,1719735072527,-19267.62,0.00016191,3]
[330720268,1719735072536,-23056.87,0.00016199,3]
[330720269,1719735072545,-39002.17,0.00016208,3]
[330720270,1719735072554,-13418.74,0.00016208,3]
[330720271,1719735072564,-5295.8,0.00016208,3]
[330720272,1719735072573,-4801.03,0.00016208,3]
[330720273,1719735072584,-8386.89,0.00016208,3]
[330720274,1719735072593,-2405.0,0.00016231,2]
[330720275,1719735072603,-1303.0,0.00016231,2]
[330720276,1719735072612,-365.2,0.00016231,2]
[330720277,1719735072621,-297.20935,0.0001625,2]
[330720278,1719735072631,-5077.01,0.00016298,3]
[330720279,1719735072640,-30379.71,0.00016299,3]
[330720280,1719735072649,-539.41,0.00016299,3]
[330720281,1719735072658,-583.33,0.00016299,3]
[330720282,1719735072667,-5371.12,0.00016299,3]
[330720283,1719735072676,-9052.16,0.00016299,3]
[330720284,1719735072686,-24110.17,0.00016299,3]
[330720285,1719735072696,-19885.13,0.00016299,3]
[330720286,1719735072705,-16681.86,0.00016299,3]
[330720287,1719735072715,-14694.08,0.00016301,3]
[330720288,1719735072724,-500.0,0.00016301,3]
[330720289,1719735072733,-6858.26,0.00016301,3]
[330720290,1719735072742,-19267.62,0.00016301,3]
[330720291,1719735072751,-23056.87,0.00016308,3]
[330720292,1719735072760,-1152.0,0.00016316,2]
[330720293,1719735072770,-39002.2057,0.00016318,3]
[330720294,1719735072780,-13418.95696319,0.00016318,3]
[330720295,1719735072797,-5296.03,0.00016318,3]
[330720296,1719735072810,-4801.26,0.00016318,3]
[330720297,1719735072820,-8386.91,0.00016318,3]
[330720298,1719735072829,-2536.763739,0.00016338,2]
[330720299,1719735072838,-3941.986679,0.00016338,2]
[330720300,1719735072848,-11380.633358,0.00016338,2]
[330720301,1719735072859,-200.0,0.00016365,2]
[330720302,1719735072869,-319.10398717,0.00016391,2]
[330720303,1719735072879,-5077.01,0.00016407,3]
[330720304,1719735072888,-1064.40851653,0.00016408,5]
[330720305,1719735072897,-30379.71,0.00016408,3]
[330720306,1719735072907,-539.41,0.00016408,3]
[330720307,1719735072916,-583.33,0.00016408,3]
[330720308,1719735072925,-5371.12,0.00016408,3]
[330720309,1719735072934,-9052.16,0.00016408,3]
[330720310,1719735072946,-24110.17,0.00016408,3]
[330720311,1719735072955,-19885.13,0.00016408,3]
[330720312,1719735072964,-16681.86,0.00016409,3]
[330720313,1719735072973,-14694.08,0.0001641,3]
[330720314,1719735072983,-500.0,0.0001641,3]
[330720315,1719735072991,-6858.26,0.0001641,3]
[330720316,1719735073001,-19267.62,0.0001641,3]
[330720317,1719735073011,-21528.88741304,0.00016411,2]
[330720318,1719735073020,-23057.06,0.00016418,3]
[330720319,1719735073029,-500.0,0.00016438,3]
[330720320,1719735073038,-157.45,0.00016438,3]
[330720321,1719735073047,-204.58,0.00016475,2]
[330720322,1719735073056,-5077.01,0.00016517,3]
[330720323,1719735073065,-539.51,0.00016518,3]
[330720324,1719735073075,-583.41,0.00016518,3]
[330720325,1719735073084,-5371.14,0.00016518,3]
[330720326,1719735073094,-9052.29,0.00016518,3]
[330720327,1719735073102,-24110.2,0.00016518,3]
[330720328,1719735073112,-19885.34,0.00016518,3]
[330720329,1719735073121,-16681.86,0.00016518,3]
[330720330,1719735073130,-14694.1,0.0001652,3]
[330720331,1719735073140,-150.0,0.0001652,3]
[330720332,1719735073149,-6858.31,0.0001652,3]
[330720333,1719735073159,-19267.67,0.0001652,3]
[330720334,1719735073168,-2536.763739,0.00016542,2]
[330720335,1719735073178,-3941.986679,0.00016542,2]
[330720336,1719735073188,-11380.633358,0.00016542,2]
[330720337,1719735073199,-1759.05412823,0.00016566,2]
[330720338,1719735073208,-5077.01,0.00016627,3]
[330720339,1719735073217,-16681.97,0.00016628,3]
[330720340,1719735073226,-1342.19463121,0.0001663,2]
[330720341,1719735073235,-5077.01,0.00016736,3]
[330720342,1719735073245,-2536.763739,0.00016747,2]
[330720343,1719735073255,-3941.986679,0.00016747,2]
[330720344,1719735073265,-11380.633358,0.00016747,2]
[330720345,1719735073275,-5077.17,0.00016846,3]
[330720346,1719735073284,-297.20936,0.0001688,2]
[330720347,1719735073294,-5040.6761955,0.00016886,2]
[330720348,1719735073303,-400.0,0.000169,6]
[330720349,1719735073312,-1000.0,0.00016903,2]
[330720350,1719735073321,-800.0,0.00016903,2]
[330720351,1719735073331,-2536.763739,0.00016951,2]
[330720352,1719735073340,-3941.986679,0.00016951,2]
[330720353,1719735073349,-11380.633358,0.00016951,2]
[330720354,1719735073359,-2000.0,0.00016986,3]
[330720355,1719735073368,-292289.55279233,0.00017,4]
[330720356,1719735073378,-21528.88741304,0.00017088,2]
[330720357,1719735073388,-1097086.19239178,0.00017102,2]
[330720358,1719735073397,-2536.763739,0.00017155,2]
[330720359,1719735073407,-3941.986679,0.00017155,2]
[330720360,1719735073417,-11380.633358,0.00017155,2]
[330720361,1719735073427,-1000.0,0.00017451,2]
[330720362,1719735073436,-800.0,0.00017451,2]
[330720363,1719735073447,-179.57,0.00017481,2]
[330720364,1719735073456,-1000.0,0.000175,2]
[330720365,1719735073466,-800.0,0.00017516,2]
[330720366,1719735073476,-227.04865744,0.00017566,2]
[330720367,1719735073485,-319.10398717,0.00017688,2]
[330720368,1719735073496,-418.1897789,0.00017703,2]
[330720369,1719735073510,-21528.88741304,0.00017766,2]
[330720370,1719735073522,-394.92,0.00017798,2]
[330720371,1719735073532,-1000.0,0.000178,2]
[330720372,1719735073542,-500.0,0.00017856,2]
[330720373,1719735073551,-200.0,0.00017856,2]
[330720374,1719735073561,-1064.40851654,0.00017899,5]
[330720375,1719735073571,-1000.0,0.000179,3]
[330720376,1719735073583,-1001.0,0.000179,2]
[330720377,1719735073592,-1613.0,0.00017926,2]
[330720378,1719735073602,-1064.5829583,0.00017988,2]
[330720379,1719735073612,-16510.619379,0.00017988,2]
[330720380,1719735073621,-1931.9493517,0.00017988,2]
[330720381,1719735073631,-389014.99088147,0.00018,3]
[330720382,1719735073640,-370.47189794,0.00018,2]
[330720383,1719735073650,-4712.22336417,0.00018,3]
[330720384,1719735073659,-155.0,0.00018,2]
[330720385,1719735073669,-509.36868542,0.00018,2]
[330720386,1719735073679,-509.36868542,0.00018,2]
[330720387,1719735073688,-509.36868542,0.00018,2]
[330720388,1719735073698,-509.36868542,0.00018,2]
[330720389,1719735073707,-509.36868542,0.00018,2]
[330720390,1719735073716,-509.36868542,0.00018,2]
[330720391,1719735073726,-509.36868542,0.00018,2]
[330720392,1719735073735,-509.36868542,0.00018,2]
[330720393,1719735073744,-509.36868542,0.00018,2]
[330720394,1719735073754,-509.36868542,0.00018,2]
[330720395,1719735073764,-509.36868542,0.00018,2]
[330720396,1719735073774,-509.36868542,0.00018,2]
[330720397,1719735073783,-509.36868542,0.00018,2]
[330720398,1719735073792,-509.36868542,0.00018,2]
[330720399,1719735073802,-509.36868542,0.00018,2]
[330720400,1719735073812,-509.36868542,0.00018,2]
[330720401,1719735073821,-509.36868542,0.00018,2]
[330720402,1719735073831,-509.36868542,0.00018,2]
[330720403,1719735073840,-509.36868542,0.00018,2]
[330720404,1719735073850,-509.36868542,0.00018,2]
[330720405,1719735073860,-509.36868542,0.00018,2]
[330720406,1719735073875,-509.36868542,0.00018,2]
[330720407,1719735073883,-509.36868542,0.00018,2]
[330720408,1719735073893,-509.36868542,0.00018,2]
[330720409,1719735073903,-509.36868542,0.00018,2]
[330720410,1719735073912,-509.36868542,0.00018,2]
[330720411,1719735073922,-509.36868542,0.00018,2]
[330720412,1719735073931,-509.36868542,0.00018,2]
[330720413,1719735073940,-509.36868542,0.00018,2]
[330720414,1719735073951,-509.36868542,0.00018,2]
[330720415,1719735073960,-509.36868542,0.00018,2]
[330720416,1719735073970,-509.36868542,0.00018,2]